[Event "*** Titled Tuesday 3|2 Blitz"]
[Site "Chess.com"]
[Date "2016.03.01"]
[Round "8"]
[White "chessking2151"]
[Black "kikydu96"]
[Result "0-1"]
[WhiteElo "2301"]
[BlackElo "2279"]
[TimeControl "180+2"]
[EndTime "18:36:20 PST"]
[Termination "kikydu96 won by resignation"]

1. e4 {[%clk 0:03:01.9]} 1... e5 {[%clk 0:02:59.4]} 2. Nf3 {[%clk 0:03:01.8]}
2... Nc6 {[%clk 0:03:00.6]} 3. Bb5 {[%clk 0:03:02.4]} 3... a6 {[%clk 0:03:01.8]}
4. Ba4 {[%clk 0:03:03.3]} 4... Nf6 {[%clk 0:03:02.4]} 5. d3 {[%clk 0:03:03.8]}
5... d6 {[%clk 0:03:02.6]} 6. O-O {[%clk 0:03:04.2]} 6... g6 {[%clk 0:03:04.2]}
7. c3 {[%clk 0:03:04.1]} 7... Bg7 {[%clk 0:03:05.7]} 8. Nbd2 {[%clk 0:03:04.8]}
8... O-O {[%clk 0:03:07.2]} 9. Re1 {[%clk 0:03:05.9]} 9... b5 {[%clk 0:03:08.8]}
10. Bc2 {[%clk 0:03:06.5]} 10... Bb7 {[%clk 0:03:08.7]} 11. Nf1 {[%clk 0:03:07]}
11... Re8 {[%clk 0:03:10]} 12. h3 {[%clk 0:03:07.8]} 12... Nb8 {[%clk
0:03:11.1]} 13. a4 {[%clk 0:03:08.1]} 13... Nbd7 {[%clk 0:03:12]} 14. Ng3 {[%clk
0:03:05.2]} 14... h6 {[%clk 0:03:11.2]} 15. Nh2 {[%clk 0:03:04.4]} 15... d5
{[%clk 0:03:11.5]} 16. Qe2 {[%clk 0:03:04.2]} 16... c5 {[%clk 0:03:06]} 17. Ng4
{[%clk 0:03:04.1]} 17... Nxg4 {[%clk 0:03:05.8]} 18. hxg4 {[%clk 0:03:02.5]}
18... Qh4 {[%clk 0:03:00.5]} 19. Nf1 {[%clk 0:02:47.1]} 19... Nf6 {[%clk
0:02:51.3]} 20. f3 {[%clk 0:02:46.7]} 20... h5 {[%clk 0:02:50]} 21. g3 {[%clk
0:02:31.9]} 21... Qh3 {[%clk 0:02:46.8]} 22. g5 {[%clk 0:02:32.2]} 22... Nh7
{[%clk 0:02:41.6]} 23. Be3 {[%clk 0:02:13.4]} 23... d4 {[%clk 0:02:40.9]} 24.
cxd4 {[%clk 0:02:13.4]} 24... exd4 {[%clk 0:02:38.4]} 25. Bd2 {[%clk 0:02:09.4]}
25... h4 {[%clk 0:02:10]} 26. g4 {[%clk 0:02:07]} 26... c4 {[%clk 0:01:59.4]}
27. Rad1 {[%clk 0:01:20.3]} 27... Be5 {[%clk 0:01:51.2]} 28. f4 {[%clk
0:01:19.9]} 28... Bd6 {[%clk 0:01:32.4]} 29. Bc1 {[%clk 0:01:13.6]} 29... f5
{[%clk 0:01:20.5]} 30. gxf5 {[%clk 0:01:12.4]} 30... gxf5 {[%clk 0:01:20.7]} 31.
Nd2 {[%clk 0:00:47]} 31... Bxf4 {[%clk 0:01:15.6]} 32. Nf3 {[%clk 0:00:48.2]}
32... Qg3+ {[%clk 0:01:09.6]} 33. Kf1 {[%clk 0:00:47.2]} 33... Nxg5 {[%clk
0:01:05.2]} 34. Nxg5 {[%clk 0:00:43.6]} 34... Bxg5 {[%clk 0:01:01]} 35. Bxg5
{[%clk 0:00:32.3]} 35... fxe4 {[%clk 0:00:56.3]} 36. dxe4 {[%clk 0:00:26.7]}
36... Rf8+ {[%clk 0:00:56.6]} 0-1

[Event "*** Titled Tuesday 3|2 Blitz"]
[Site "Chess.com"]
[Date "2016.03.01"]
[Round "8"]
[White "GrigorGrigorov"]
[Black "vellottiwizard"]
[Result "1-0"]
[WhiteElo "2555"]
[BlackElo "2457"]
[TimeControl "180+2"]
[EndTime "18:36:28 PST"]
[Termination "GrigorGrigorov won by resignation"]

1. d4 {[%clk 0:03:01.9]} 1... Nf6 {[%clk 0:03:00.5]} 2. Nf3 {[%clk 0:03:02.3]}
2... e6 {[%clk 0:03:00.2]} 3. c4 {[%clk 0:03:03.4]} 3... b6 {[%clk 0:03:01.2]}
4. g3 {[%clk 0:03:04.2]} 4... Bb7 {[%clk 0:03:02.3]} 5. Bg2 {[%clk 0:03:05.2]}
5... Be7 {[%clk 0:03:04]} 6. O-O {[%clk 0:03:06.2]} 6... O-O {[%clk 0:03:05.6]}
7. Nc3 {[%clk 0:03:06.4]} 7... Ne4 {[%clk 0:03:07.1]} 8. Qc2 {[%clk 0:03:07.6]}
8... Nxc3 {[%clk 0:03:07.7]} 9. Qxc3 {[%clk 0:03:08.4]} 9... d6 {[%clk 0:03:08]}
10. Qc2 {[%clk 0:02:56.6]} 10... Qc8 {[%clk 0:03:06.1]} 11. e4 {[%clk 0:02:56]}
11... Nd7 {[%clk 0:03:06.4]} 12. Re1 {[%clk 0:02:55.3]} 12... a6 {[%clk
0:02:58.8]} 13. h4 {[%clk 0:02:48.7]} 13... b5 {[%clk 0:02:51.5]} 14. b3 {[%clk
0:02:48.1]} 14... c5 {[%clk 0:02:47.3]} 15. d5 {[%clk 0:02:48.5]} 15... Bf6
{[%clk 0:02:39.1]} 16. Rb1 {[%clk 0:02:47.9]} 16... Qc7 {[%clk 0:02:38.7]} 17.
Bh3 {[%clk 0:02:41.7]} 17... exd5 {[%clk 0:02:35.6]} 18. exd5 {[%clk 0:02:41.5]}
18... Rfe8 {[%clk 0:02:33.2]} 19. Bf4 {[%clk 0:02:41.3]} 19... Nb6 {[%clk
0:02:32.8]} 20. Bf5 {[%clk 0:02:39.4]} 20... g6 {[%clk 0:02:32.6]} 21. Bd3
{[%clk 0:02:40.4]} 21... Qd7 {[%clk 0:02:30.3]} 22. Kg2 {[%clk 0:02:39.3]} 22...
Rxe1 {[%clk 0:02:30.7]} 23. Rxe1 {[%clk 0:02:37.8]} 23... a5 {[%clk 0:02:19.8]}
24. h5 {[%clk 0:02:35.5]} 24... Rf8 {[%clk 0:01:41.9]} 25. Ng5 {[%clk
0:02:30.9]} 25... Bxg5 {[%clk 0:01:30.4]} 26. Bxg5 {[%clk 0:02:31.3]} 26... Re8
{[%clk 0:01:32]} 27. Qd2 {[%clk 0:02:17.8]} 27... Rxe1 {[%clk 0:00:38.8]} 28.
Qxe1 {[%clk 0:02:17.5]} 28... f6 {[%clk 0:00:34.2]} 29. Bxf6 {[%clk 0:02:10.9]}
29... Qf7 {[%clk 0:00:34.5]} 30. Qe7 {[%clk 0:01:47.8]} 30... Qxe7 {[%clk
0:00:23.1]} 31. Bxe7 {[%clk 0:01:47.9]} 31... bxc4 {[%clk 0:00:24.6]} 32. bxc4
{[%clk 0:01:46.6]} 32... Ba6 {[%clk 0:00:24.3]} 33. Bxd6 {[%clk 0:01:40.5]}
33... Bxc4 {[%clk 0:00:22.6]} 34. Bxc4 {[%clk 0:01:40.5]} 34... Nxc4 {[%clk
0:00:24.5]} 35. Bxc5 {[%clk 0:01:38.8]} 35... Kf7 {[%clk 0:00:25.6]} 36. hxg6+
{[%clk 0:01:36.4]} 36... hxg6 {[%clk 0:00:25.4]} 37. Kf3 {[%clk 0:01:36.7]}
37... Kf6 {[%clk 0:00:25.1]} 38. Ke4 {[%clk 0:01:33.8]} 38... Nd2+ {[%clk
0:00:25.3]} 39. Kd3 {[%clk 0:01:33.4]} 39... Nf3 {[%clk 0:00:26]} 40. Kc4 {[%clk
0:01:11.8]} 40... Nd2+ {[%clk 0:00:20.4]} 41. Kb5 {[%clk 0:01:11.1]} 41... Ne4
{[%clk 0:00:21.7]} 42. Kc6 {[%clk 0:01:10.6]} 1-0

[Event "*** Titled Tuesday 3|2 Blitz"]
[Site "Chess.com"]
[Date "2016.03.01"]
[Round "8"]
[White "GianmarcoVaR"]
[Black "Fins0905"]
[Result "0-1"]
[WhiteElo "2366"]
[BlackElo "2463"]
[TimeControl "180+2"]
[EndTime "18:36:57 PST"]
[Termination "Fins0905 won by checkmate"]

1. d4 {[%clk 0:02:51.9]} 1... d5 {[%clk 0:03:00.3]} 2. Nf3 {[%clk 0:02:52.6]}
2... Nf6 {[%clk 0:03:01]} 3. c4 {[%clk 0:02:53.7]} 3... c6 {[%clk 0:03:01.5]} 4.
e3 {[%clk 0:02:54.8]} 4... Bf5 {[%clk 0:03:02]} 5. Nc3 {[%clk 0:02:55.7]} 5...
e6 {[%clk 0:03:03]} 6. Nh4 {[%clk 0:02:56.8]} 6... Be4 {[%clk 0:03:03.8]} 7. f3
{[%clk 0:02:56.3]} 7... Bg6 {[%clk 0:03:04.7]} 8. Qb3 {[%clk 0:02:57.8]} 8...
Qc7 {[%clk 0:03:04]} 9. Bd2 {[%clk 0:02:51.7]} 9... Be7 {[%clk 0:03:04.9]} 10.
Rc1 {[%clk 0:02:50]} 10... dxc4 {[%clk 0:02:44.4]} 11. Bxc4 {[%clk 0:02:30.7]}
11... Ne4 {[%clk 0:02:37.6]} 12. Nxe4 {[%clk 0:02:13.2]} 12... Bxh4+ {[%clk
0:02:36.9]} 13. g3 {[%clk 0:02:02]} 13... Be7 {[%clk 0:02:31.8]} 14. O-O {[%clk
0:01:50.7]} 14... Nd7 {[%clk 0:02:29.8]} 15. Bb4 {[%clk 0:01:21.7]} 15... Nb6
{[%clk 0:02:24.4]} 16. Bxe7 {[%clk 0:01:17.2]} 16... Qxe7 {[%clk 0:02:26.3]} 17.
Nc5 {[%clk 0:01:14]} 17... O-O {[%clk 0:02:23.3]} 18. f4 {[%clk 0:01:02]} 18...
Rab8 {[%clk 0:02:12.6]} 19. Be2 {[%clk 0:00:50.2]} 19... Nc8 {[%clk 0:01:59.6]}
20. Rfd1 {[%clk 0:00:47]} 20... Nd6 {[%clk 0:01:59.8]} 21. Bf3 {[%clk
0:00:43.9]} 21... h5 {[%clk 0:01:49.1]} 22. Kg2 {[%clk 0:00:43.7]} 22... Rbc8
{[%clk 0:01:36.9]} 23. Qa4 {[%clk 0:00:38.8]} 23... b6 {[%clk 0:01:34]} 24. Nd3
{[%clk 0:00:35.7]} 24... Be4 {[%clk 0:01:32.6]} 25. Bxe4 {[%clk 0:00:31.2]}
25... Nxe4 {[%clk 0:01:33.6]} 26. Rxc6 {[%clk 0:00:27.3]} 26... Qb7 {[%clk
0:01:30.9]} 27. Rdc1 {[%clk 0:00:27.4]} 27... Nc5 {[%clk 0:01:21]} 28. dxc5
{[%clk 0:00:15]} 28... Rxc6 {[%clk 0:01:14.2]} 29. Kf2 {[%clk 0:00:12]} 29...
bxc5 {[%clk 0:01:13.6]} 30. b3 {[%clk 0:00:11.2]} 30... Rd6 {[%clk 0:01:10.4]}
31. Rc3 {[%clk 0:00:04.3]} 31... Rfd8 {[%clk 0:01:08.5]} 32. Qc4 {[%clk
0:00:05.2]} 32... Qh1 {[%clk 0:01:02.5]} 33. h4 {[%clk 0:00:05.1]} 33... Qh2+
{[%clk 0:00:57.3]} 34. Kf3 {[%clk 0:00:06]} 34... Qd2 {[%clk 0:00:56]} 35. Nxc5
{[%clk 0:00:05.6]} 35... Qd1+ {[%clk 0:00:56.4]} 36. Qe2 {[%clk 0:00:05.8]}
36... Qh1+ {[%clk 0:00:55]} 37. Qg2 {[%clk 0:00:05.6]} 37... Qa1 {[%clk
0:00:55.4]} 38. Rc2 {[%clk 0:00:05.8]} 38... Rd1 {[%clk 0:00:53]} 39. Ne4 {[%clk
0:00:05.8]} 39... Rf1+ {[%clk 0:00:52.8]} 40. Ke2 {[%clk 0:00:05.9]} 40... Qd1#
{[%clk 0:00:52.9]} 0-1

[Event "*** Titled Tuesday 3|2 Blitz"]
[Site "Chess.com"]
[Date "2016.03.01"]
[Round "8"]
[White "Iwannabetheguy"]
[Black "yopino"]
[Result "1-0"]
[WhiteElo "2014"]
[BlackElo "2148"]
[TimeControl "180+2"]
[EndTime "18:37:42 PST"]
[Termination "Iwannabetheguy won by resignation"]

1. e4 {[%clk 0:03:01.9]} 1... c5 {[%clk 0:02:59.3]} 2. Nf3 {[%clk 0:03:03]} 2...
g6 {[%clk 0:02:57.9]} 3. d4 {[%clk 0:03:03.8]} 3... cxd4 {[%clk 0:02:58.4]} 4.
Nxd4 {[%clk 0:03:05.4]} 4... Nc6 {[%clk 0:02:59.3]} 5. Nc3 {[%clk 0:03:05.4]}
5... Bg7 {[%clk 0:02:59.7]} 6. Be3 {[%clk 0:03:06.8]} 6... Nf6 {[%clk 0:03:01]}
7. Bc4 {[%clk 0:03:06.2]} 7... O-O {[%clk 0:03:01.3]} 8. Bb3 {[%clk 0:03:06.3]}
8... a5 {[%clk 0:03:01.5]} 9. O-O {[%clk 0:03:05.2]} 9... Nxd4 {[%clk
0:03:01.4]} 10. Bxd4 {[%clk 0:03:04.6]} 10... d6 {[%clk 0:03:02.7]} 11. e5
{[%clk 0:02:55.2]} 11... dxe5 {[%clk 0:03:01.5]} 12. Bxe5 {[%clk 0:02:56.1]}
12... Bd7 {[%clk 0:02:58.7]} 13. a4 {[%clk 0:02:40.4]} 13... Bc6 {[%clk
0:02:59.1]} 14. Nb5 {[%clk 0:02:36.7]} 14... Bxb5 {[%clk 0:02:49.9]} 15. axb5
{[%clk 0:02:37.3]} 15... Qb6 {[%clk 0:02:49.3]} 16. c4 {[%clk 0:02:30.5]} 16...
Ne4 {[%clk 0:02:22.4]} 17. Bxg7 {[%clk 0:02:26.5]} 17... Kxg7 {[%clk 0:02:24.3]}
18. Qf3 {[%clk 0:02:20.6]} 18... Nc5 {[%clk 0:02:24.4]} 19. Rad1 {[%clk
0:02:13.3]} 19... Qf6 {[%clk 0:02:18.2]} 20. Qxf6+ {[%clk 0:02:02.4]} 20... Kxf6
{[%clk 0:02:20.1]} 21. Bc2 {[%clk 0:02:02.7]} 21... Rfd8 {[%clk 0:02:19.9]} 22.
f4 {[%clk 0:02:00]} 22... b6 {[%clk 0:02:15.3]} 23. Kf2 {[%clk 0:02:00.6]} 23...
Rac8 {[%clk 0:02:00.5]} 24. Ke3 {[%clk 0:01:53.5]} 24... Ne6 {[%clk 0:02:01]}
25. b3 {[%clk 0:01:48.3]} 25... Rxd1 {[%clk 0:01:59.7]} 26. Rxd1 {[%clk
0:01:48.8]} 26... Rd8 {[%clk 0:02:01.2]} 27. g4 {[%clk 0:01:43]} 27... Rxd1
{[%clk 0:02:00.6]} 28. Bxd1 {[%clk 0:01:44.2]} 28... Nc5 {[%clk 0:02:00]} 29.
Bc2 {[%clk 0:01:42.5]} 29... Ke6 {[%clk 0:01:59.5]} 30. h4 {[%clk 0:01:42]}
30... Kd6 {[%clk 0:02:00.1]} 31. Kd4 {[%clk 0:01:41.9]} 31... Ne6+ {[%clk
0:01:57]} 32. Ke4 {[%clk 0:01:42.4]} 32... Kc5 {[%clk 0:01:58.1]} 33. f5 {[%clk
0:01:35.3]} 33... Nc7 {[%clk 0:01:13.3]} 34. fxg6 {[%clk 0:01:33.2]} 34... fxg6
{[%clk 0:01:11.9]} 35. Ke5 {[%clk 0:01:31.3]} 35... Kb4 {[%clk 0:01:11.9]} 36.
h5 {[%clk 0:01:05.7]} 36... Kc3 {[%clk 0:00:58.5]} 37. Bd1 {[%clk 0:00:43.9]}
37... Kd2 {[%clk 0:00:54.8]} 38. Bf3 {[%clk 0:00:40.3]} 38... Kc3 {[%clk
0:00:55.7]} 39. Bd1 {[%clk 0:00:41.1]} 39... Kd2 {[%clk 0:00:49.5]} 40. Bf3
{[%clk 0:00:41]} 40... Ke3 {[%clk 0:00:49.5]} 41. Bd1 {[%clk 0:00:41.2]} 41...
Kd3 {[%clk 0:00:48.2]} 42. hxg6 {[%clk 0:00:34.5]} 42... hxg6 {[%clk 0:00:48.3]}
43. g5 {[%clk 0:00:30.4]} 43... Kd2 {[%clk 0:00:47.6]} 44. Bf3 {[%clk
0:00:29.4]} 44... Ke3 {[%clk 0:00:48.6]} 45. Be4 {[%clk 0:00:30]} 45... Ne8
{[%clk 0:00:42.5]} 46. Bxg6 {[%clk 0:00:30.5]} 46... Ng7 {[%clk 0:00:44.1]} 47.
Bc2 {[%clk 0:00:28.5]} 47... Kd2 {[%clk 0:00:45]} 48. Be4 {[%clk 0:00:28.9]}
48... Kc3 {[%clk 0:00:45.8]} 49. c5 {[%clk 0:00:29.7]} 49... Kxb3 {[%clk
0:00:40.4]} 50. cxb6 {[%clk 0:00:29.3]} 50... a4 {[%clk 0:00:42.3]} 51. b7
{[%clk 0:00:30]} 51... a3 {[%clk 0:00:44.2]} 52. b8=Q {[%clk 0:00:27.2]} 52...
a2 {[%clk 0:00:46.1]} 53. Bd5+ {[%clk 0:00:28.5]} 1-0

[Event "*** Titled Tuesday 3|2 Blitz"]
[Site "Chess.com"]
[Date "2016.03.01"]
[Round "8"]
[White "Recombinant"]
[Black "ethylalcohol"]
[Result "1-0"]
[WhiteElo "2206"]
[BlackElo "1778"]
[TimeControl "180+2"]
[EndTime "18:37:46 PST"]
[Termination "Recombinant won on time"]

1. d4 {[%clk 0:03:01.9]} 1... d5 {[%clk 0:02:57.9]} 2. c4 {[%clk 0:03:02.6]}
2... e6 {[%clk 0:02:56.3]} 3. Nc3 {[%clk 0:03:03.1]} 3... Nf6 {[%clk 0:02:56.9]}
4. Bg5 {[%clk 0:03:02.3]} 4... Nbd7 {[%clk 0:02:52.8]} 5. e3 {[%clk 0:02:50.6]}
5... c6 {[%clk 0:02:51.2]} 6. Bd3 {[%clk 0:02:51.3]} 6... Qa5 {[%clk 0:02:49]}
7. cxd5 {[%clk 0:02:40.2]} 7... Nxd5 {[%clk 0:02:46.9]} 8. Nf3 {[%clk
0:02:14.2]} 8... Nxc3 {[%clk 0:02:34.1]} 9. bxc3 {[%clk 0:02:15.6]} 9... Qxc3+
{[%clk 0:02:34.1]} 10. Kf1 {[%clk 0:02:16.2]} 10... Ba3 {[%clk 0:02:21.1]} 11.
h3 {[%clk 0:02:13.8]} 11... O-O {[%clk 0:02:19.2]} 12. Kg1 {[%clk 0:02:10.2]}
12... h6 {[%clk 0:01:46.9]} 13. Bf4 {[%clk 0:02:05.2]} 13... c5 {[%clk
0:01:34.9]} 14. Rb1 {[%clk 0:02:03.6]} 14... c4 {[%clk 0:01:31.8]} 15. Be2
{[%clk 0:01:58.5]} 15... Nb6 {[%clk 0:01:31.3]} 16. Nd2 {[%clk 0:01:38.8]} 16...
Bd7 {[%clk 0:01:06.5]} 17. Ne4 {[%clk 0:01:27.3]} 17... Qa5 {[%clk 0:00:58.7]}
18. Qc2 {[%clk 0:01:15.3]} 18... Ba4 {[%clk 0:00:54.5]} 19. Qd2 {[%clk
0:01:16.3]} 19... Qf5 {[%clk 0:00:49.8]} 20. Bf3 {[%clk 0:01:11.1]} 20... Bc6
{[%clk 0:00:48.7]} 21. Nc3 {[%clk 0:01:03]} 21... Bxf3 {[%clk 0:00:42.7]} 22.
gxf3 {[%clk 0:01:04.9]} 22... Rad8 {[%clk 0:00:35.5]} 23. Kh2 {[%clk 0:00:55.7]}
23... e5 {[%clk 0:00:35.3]} 24. Bg3 {[%clk 0:00:52.9]} 24... exd4 {[%clk
0:00:33.7]} 25. exd4 {[%clk 0:00:54]} 25... Qxf3 {[%clk 0:00:34.1]} 26. Nb5
{[%clk 0:00:50.6]} 26... Bc5 {[%clk 0:00:29.2]} 27. Qe3 {[%clk 0:00:45.1]} 27...
Qxe3 {[%clk 0:00:25.3]} 28. fxe3 {[%clk 0:00:46.3]} 28... Be7 {[%clk 0:00:21.3]}
29. Nxa7 {[%clk 0:00:46.2]} 29... Nd5 {[%clk 0:00:22.2]} 30. Rhe1 {[%clk
0:00:42]} 30... Bb4 {[%clk 0:00:20.9]} 31. Rg1 {[%clk 0:00:22.8]} 31... Ra8
{[%clk 0:00:16.6]} 32. e4 {[%clk 0:00:17.2]} 32... Rxa7 {[%clk 0:00:16.9]} 33.
exd5 {[%clk 0:00:18.4]} 33... Rxa2+ {[%clk 0:00:17.7]} 34. Kh1 {[%clk 0:00:20]}
34... Bd2 {[%clk 0:00:11.6]} 35. Rxb7 {[%clk 0:00:19.1]} 35... c3 {[%clk
0:00:10.9]} 36. Be5 {[%clk 0:00:20.3]} 36... g6 {[%clk 0:00:06.5]} 37. Rxg6+
{[%clk 0:00:17.2]} 37... fxg6 {[%clk 0:00:04.1]} 38. Rg7+ {[%clk 0:00:18.4]}
38... Kh8 {[%clk 0:00:04.8]} 39. Rxg6+ {[%clk 0:00:19.5]} 39... Kh7 {[%clk
0:00:04.6]} 40. Rg7+ {[%clk 0:00:20.9]} 40... Kh8 {[%clk 0:00:05.8]} 41. Ra7+
{[%clk 0:00:21.6]} 41... Kg8 {[%clk 0:00:05.8]} 42. Rxa2 {[%clk 0:00:22.6]} 1-0

[Event "*** Titled Tuesday 3|2 Blitz"]
[Site "Chess.com"]
[Date "2016.03.01"]
[Round "8"]
[White "DanielNaroditsky"]
[Black "dretch"]
[Result "1/2-1/2"]
[WhiteElo "2610"]
[BlackElo "2585"]
[TimeControl "180+2"]
[EndTime "18:37:57 PST"]
[Termination "Game drawn by repetition"]

1. b3 {[%clk 0:03:01.9]} 1... d5 {[%clk 0:02:58.2]} 2. Bb2 {[%clk 0:03:03.2]}
2... Bg4 {[%clk 0:02:59.4]} 3. g3 {[%clk 0:03:03.4]} 3... Nd7 {[%clk 0:02:59.3]}
4. Bg2 {[%clk 0:03:04.7]} 4... c6 {[%clk 0:03:00.4]} 5. Nf3 {[%clk 0:03:05.7]}
5... e6 {[%clk 0:03:01.1]} 6. O-O {[%clk 0:03:06.9]} 6... Ngf6 {[%clk
0:03:01.5]} 7. d3 {[%clk 0:03:08.4]} 7... Be7 {[%clk 0:03:01.9]} 8. Nbd2 {[%clk
0:03:09.6]} 8... O-O {[%clk 0:03:02.3]} 9. e4 {[%clk 0:03:10.8]} 9... a5 {[%clk
0:03:01.7]} 10. a3 {[%clk 0:03:11.6]} 10... Ne8 {[%clk 0:03:01.3]} 11. Qe2
{[%clk 0:03:07.4]} 11... Nc7 {[%clk 0:02:58.1]} 12. Qe3 {[%clk 0:02:55.1]} 12...
Re8 {[%clk 0:02:49]} 13. Qd4 {[%clk 0:02:37.4]} 13... e5 {[%clk 0:02:22.2]} 14.
Qe3 {[%clk 0:02:37.1]} 14... Bc5 {[%clk 0:02:18]} 15. Qe2 {[%clk 0:02:20.3]}
15... Nb5 {[%clk 0:02:18.5]} 16. h3 {[%clk 0:02:16.3]} 16... Bh5 {[%clk
0:02:19.4]} 17. g4 {[%clk 0:02:14.1]} 17... Bg6 {[%clk 0:02:20.3]} 18. a4 {[%clk
0:02:11.4]} 18... Nd6 {[%clk 0:02:20.8]} 19. Rfe1 {[%clk 0:02:05.7]} 19... Rc8
{[%clk 0:02:13.3]} 20. Kh1 {[%clk 0:01:57.5]} 20... Qb6 {[%clk 0:02:06.1]} 21.
Rf1 {[%clk 0:01:48.3]} 21... Rcd8 {[%clk 0:01:58]} 22. Nh4 {[%clk 0:01:49]}
22... dxe4 {[%clk 0:01:54.7]} 23. dxe4 {[%clk 0:01:45.4]} 23... Nf8 {[%clk
0:01:55.5]} 24. Nf5 {[%clk 0:01:39.7]} 24... Qc7 {[%clk 0:01:31]} 25. f4 {[%clk
0:01:06.7]} 25... Bxf5 {[%clk 0:00:48.1]} 26. gxf5 {[%clk 0:01:07.7]} 26... Nd7
{[%clk 0:00:34.7]} 27. Rad1 {[%clk 0:00:49.3]} 27... f6 {[%clk 0:00:34.3]} 28.
Nc4 {[%clk 0:00:43.9]} 28... exf4 {[%clk 0:00:29.4]} 29. Rxf4 {[%clk 0:00:45]}
29... Nxc4 {[%clk 0:00:24.7]} 30. Qxc4+ {[%clk 0:00:46.1]} 30... Kh8 {[%clk
0:00:26.2]} 31. Rg4 {[%clk 0:00:46.2]} 31... Bf8 {[%clk 0:00:14.9]} 32. Qf7
{[%clk 0:00:44.6]} 32... Re7 {[%clk 0:00:14.2]} 33. Qh5 {[%clk 0:00:38.5]} 33...
Ne5 {[%clk 0:00:13.7]} 34. Rxd8 {[%clk 0:00:37.2]} 34... Qxd8 {[%clk 0:00:15.6]}
35. Rh4 {[%clk 0:00:38.6]} 35... h6 {[%clk 0:00:17.2]} 36. Bc1 {[%clk 0:00:25]}
36... Rd7 {[%clk 0:00:16.2]} 37. Bf4 {[%clk 0:00:26.7]} 37... Rd1+ {[%clk
0:00:14.8]} 38. Kh2 {[%clk 0:00:28.3]} 38... Bc5 {[%clk 0:00:13.9]} 39. Bxh6
{[%clk 0:00:22.6]} 39... Bg1+ {[%clk 0:00:04.4]} 40. Kg3 {[%clk 0:00:23.5]}
40... Kg8 {[%clk 0:00:03.7]} 41. Bxg7 {[%clk 0:00:24.6]} 41... Bf2+ {[%clk
0:00:03.7]} 42. Kxf2 {[%clk 0:00:21.9]} 42... Qd4+ {[%clk 0:00:03]} 43. Kg3
{[%clk 0:00:18.8]} 43... Qe3+ {[%clk 0:00:03.5]} 44. Kh2 {[%clk 0:00:15.3]}
44... Qg1+ {[%clk 0:00:04.4]} 45. Kg3 {[%clk 0:00:16.8]} 45... Qe3+ {[%clk
0:00:04.7]} 46. Kh2 {[%clk 0:00:15.6]} 46... Qg1+ {[%clk 0:00:05.8]} 47. Kg3
{[%clk 0:00:17]} 47... Qe3+ {[%clk 0:00:07]} 48. Kh2 {[%clk 0:00:18.6]} 48...
Qg1+ {[%clk 0:00:08.2]} 49. Kg3 {[%clk 0:00:20.2]} 49... Qe3+ {[%clk 0:00:09.4]}
1/2-1/2